bitfinex/quotes_ETHUSD_20250112
["timestamp","ask_amount","ask_price","bid_price","bid_amount"]
[1736707594018,0.28369005,3284.9,3284.8,0.7589038]
[1736707594515,0.28369005,3284.9,3284.8,0.78934369]
[1736707594918,0.28369005,3284.9,3284.8,7.32297775]
[1736707595151,0.28369005,3284.9,3284.8,7.29253786]
[1736707595316,0.28369005,3284.9,3284.8,6.08919269]
[1736707596021,4.82786706,3286.3,3285.1,0.0075]
[1736707596219,2.13012,3286.2,3285.4,0.7589]
[1736707596431,2.13012,3286.2,3285.6,0.7514]
[1736707599176,2.12998,3286.5,3285.6,0.7514]
[1736707599349,2.12999,3286.4,3285.7,0.03043207]
[1736707599535,2.12999,3286.4,3285.8,0.7514]
[1736707600650,0.02721065,3286.3,3285.8,0.7514]
[1736707601656,2.15726065,3286.3,3285.8,0.7514]
[1736707602976,0.02721065,3286.3,3285.8,0.7514]
[1736707603279,2.12993,3286.5,3285.6,0.7589]
[1736707603441,0.02827159,3286.2,3285.8,0.7589]
[1736707603637,2.12993,3286.5,3285.8,0.7589]
[1736707604075,0.02827159,3286.4,3285.8,0.7589]
[1736707608781,0.211,3286.9,3285.8,0.7589]
[1736707608947,2.12986,3286.6,3285.8,0.7589]
[1736707609343,0.02827159,3286.5,3285.8,0.7589]
[1736707610683,0.02827159,3286.5,3286.1,0.8104]
[1736707610684,2.15820159,3286.5,3286.1,0.8104]
[1736707611299,0.02827159,3286.5,3286.1,0.8104]
[1736707611665,2.12989,3286.6,3286.1,0.8104]
[1736707611865,0.02852063,3286.4,3286.1,0.8104]
[1736707612066,2.12989,3286.6,3286.1,0.8104]
[1736707612267,0.02852063,3286.3,3286.1,0.8104]
[1736707612466,2.12989,3286.6,3286.1,0.8104]
[1736707612701,0.02852063,3286.2,3286.1,0.8104]
[1736707612896,2.12989,3286.6,3286.1,0.8104]
[1736707613090,0.02852063,3286.2,3286.1,0.8104]
[1736707613567,2.12989,3286.6,3286.1,0.8104]
[1736707613787,0.02852063,3286.5,3286.1,0.8104]
[1736707615029,2.12988,3286.6,3286.1,0.8104]
[1736707615223,0.02852063,3286.5,3286.1,0.8104]
[1736707625383,1.23039013,3286.5,3286.1,0.8104]
[1736707625649,2.13036,3285.9,3285.5,0.8084]
[1736707625875,1.2018695,3285.7,3285.5,0.8084]
[1736707626083,0.21,3286.2,3284.8,3.8e-06]
[1736707626084,2.15959537,3285.8,3285.3,0.8084]
[1736707626238,2.1304,3285.8,3285.3,0.8084]
[1736707626555,2.13057,3285.5,3285.3,0.8084]
[1736707626712,1.23106487,3285.7,3285.3,0.8084]
[1736707626915,0.02879376,3285.4,3285.3,0.8084]
[1736707627151,2.13051,3285.6,3285.3,0.8084]
[1736707627318,0.02879376,3285.4,3285.3,0.8084]
[1736707627517,2.13051,3285.6,3285.3,0.8084]
[1736707627730,0.02879376,3285.4,3285.3,0.8084]
[1736707627951,2.13051,3285.6,3285.3,0.8084]
[1736707628567,0.02879376,3285.5,3285.3,0.8084]
[1736707631249,2.13047,3285.7,3285.3,0.8084]
[1736707631439,0.02879376,3285.6,3285.3,0.8084]
[1736707634378,0.02879376,3285.6,3284.9,0.7884]
[1736707634577,0.02879376,3285.6,3285.0,0.03043787]
[1736707636289,2.15931376,3285.6,3284.9,0.7809]
[1736707636485,2.13052,3285.6,3284.9,0.7809]
[1736707636690,0.02879376,3285.5,3284.9,0.7809]
[1736707637095,2.15936376,3285.5,3284.9,0.7809]
[1736707638879,0.02879376,3285.5,3284.9,0.7809]
[1736707639965,0.02879376,3285.5,3284.9,0.81133862]
[1736707640171,2.13047,3285.7,3284.9,0.81133862]
[1736707640392,0.02859293,3285.6,3284.9,0.81133862]
[1736707642269,0.02859293,3285.6,3285.0,0.0075]
[1736707642471,0.02859293,3285.6,3285.3,0.7884]
[1736707642698,2.13029,3286.0,3285.4,0.03043408]
[1736707642875,0.02831979,3285.5,3285.3,0.7884]
[1736707643075,2.13029,3286.0,3285.3,0.7884]
[1736707643277,0.02831979,3285.4,3285.3,0.7884]
[1736707643815,2.13029,3286.0,3285.3,0.7884]
[1736707644116,0.02831979,3285.9,3285.3,0.7884]
[1736707644319,0.02831979,3285.9,3285.3,1.08032]
[1736707645209,2.15864979,3285.9,3285.3,1.08032]
[1736707645390,2.15864979,3285.9,3285.3,0.7884]
[1736707647180,2.1304,3285.8,3285.3,0.7884]
[1736707647393,0.02840013,3285.7,3285.3,0.7884]
[1736707647601,2.1304,3285.8,3285.3,0.7884]
[1736707647917,0.02840013,3285.7,3285.3,0.7884]
[1736707648329,2.1304,3285.8,3285.3,0.7884]
[1736707648490,0.02840013,3285.6,3285.3,0.7884]
[1736707648689,2.1304,3285.8,3285.3,0.7884]
[1736707648891,0.02840013,3285.5,3285.3,0.7884]
[1736707649090,2.1304,3285.8,3285.3,0.7884]
[1736707649312,0.02840013,3285.4,3285.3,0.7884]
[1736707649502,2.1304,3285.8,3285.3,0.7884]
[1736707649682,0.02840013,3285.4,3285.3,0.7884]
[1736707649887,2.1304,3285.8,3285.3,0.7884]
[1736707650089,0.02840013,3285.4,3285.3,0.7884]
[1736707650312,2.1304,3285.8,3285.3,0.7884]
[1736707650828,0.02840013,3285.7,3285.3,0.7884]
[1736707650989,2.1304,3285.8,3285.3,0.7884]
[1736707651190,0.02840013,3285.7,3285.3,0.7884]
[1736707651421,2.1304,3285.8,3285.3,0.7884]
[1736707651590,0.0283921,3285.7,3285.3,0.7884]
[1736707651797,2.1304,3285.8,3285.3,0.7884]
[1736707652014,0.0283921,3285.7,3285.3,0.7884]
[1736707652225,2.1304,3285.8,3285.3,0.7884]
[1736707652429,0.0283921,3285.7,3285.3,0.7884]
[1736707652608,2.1304,3285.8,3285.3,0.7884]
[1736707652812,0.0283921,3285.7,3285.3,0.7884]
[1736707652986,2.1304,3285.8,3285.3,0.7884]
[1736707653187,0.0283921,3285.7,3285.3,0.7884]
[1736707653388,2.1304,3285.8,3285.3,0.7884]
[1736707653725,0.0283921,3285.7,3285.3,0.7884]
[1736707654400,0.0283921,3285.6,3285.3,0.7884]
[1736707654608,2.1304,3285.8,3285.3,0.7884]
[1736707654809,0.0283921,3285.7,3285.4,0.03043405]
[1736707655041,1.20245834,3286.1,3285.5,0.7668]
[1736707655042,2.13028,3286.0,3285.5,0.7668]
[1736707655241,0.0283921,3285.9,3285.5,0.7668]
[1736707655455,2.1587121,3285.9,3285.5,0.7668]
[1736707655816,2.13038,3285.8,3285.5,0.7668]
[1736707656264,0.0283921,3285.7,3285.5,0.7668]
[1736707656434,2.13038,3285.8,3285.5,0.7668]
[1736707656640,0.0283921,3285.7,3285.5,0.7668]
[1736707657012,2.13038,3285.8,3285.5,0.7668]
[1736707657214,0.0283921,3285.7,3285.5,0.7668]
[1736707657413,2.13038,3285.8,3285.5,0.7668]
[1736707657728,0.02843226,3285.7,3285.5,0.7668]
[1736707658051,2.13038,3285.8,3285.5,0.7668]
[1736707658414,0.02842423,3285.7,3285.5,0.7668]
[1736707658614,2.13038,3285.8,3285.5,0.7668]
[1736707658941,0.02842423,3285.7,3285.5,0.7668]
[1736707659445,0.02842423,3285.6,3285.5,0.7668]
[1736707659746,2.13038,3285.8,3285.5,0.7668]
[1736707659939,0.02842423,3285.6,3285.5,0.7668]
[1736707660141,2.13038,3285.8,3285.5,0.7668]
[1736707660337,0.02842423,3285.6,3285.5,0.7668]
[1736707660542,2.13038,3285.8,3285.5,0.7668]
[1736707660714,0.02842423,3285.6,3285.5,0.7668]
[1736707660917,2.13038,3285.8,3285.5,0.7668]
[1736707661429,0.02842423,3285.7,3285.5,0.7668]
[1736707661752,2.13038,3285.8,3285.5,0.7668]
[1736707661952,0.0284644,3285.6,3285.5,0.7668]
[1736707662455,2.13038,3285.8,3285.5,0.7668]
[1736707662665,0.0284644,3285.7,3285.5,0.7668]
[1736707662866,2.13038,3285.8,3285.5,0.7668]
[1736707663049,0.0284644,3285.7,3285.5,0.7668]
[1736707663366,2.13026,3286.0,3285.5,0.7668]
[1736707663571,0.02845636,3285.6,3285.5,0.7668]
[1736707663726,2.13026,3286.0,3285.5,0.7668]
[1736707663929,0.02845636,3285.6,3285.5,0.7668]
[1736707664128,2.13026,3286.0,3285.5,0.7668]
[1736707664329,0.02845636,3285.6,3285.5,0.7668]
[1736707664965,2.13026,3286.0,3285.5,0.7668]
[1736707665131,0.02845636,3285.6,3285.5,0.7668]
[1736707665328,2.13032,3285.9,3285.5,0.7668]
[1736707665528,0.02845636,3285.6,3285.5,0.7668]
[1736707665744,2.13032,3285.9,3285.5,0.7668]
[1736707665974,0.02845636,3285.6,3285.5,0.7668]
[1736707666176,2.13032,3285.9,3285.5,0.7668]
[1736707666360,0.02845636,3285.6,3285.5,0.7668]
[1736707666531,2.13032,3285.9,3285.5,0.7668]
[1736707666731,0.0284644,3285.6,3285.5,0.7668]
[1736707666933,2.13032,3285.9,3285.5,0.7668]
[1736707667136,0.02847243,3285.6,3285.5,0.7668]
[1736707667471,0.8326,3286.5,3285.8,0.0075]
[1736707667769,2.12993,3286.5,3285.8,0.0075]
[1736707668588,2.1298,3286.7,3285.8,0.0075]
[1736707668743,1.20245834,3286.7,3286.0,0.823]
[1736707668936,2.12986,3286.6,3286.0,0.823]
[1736707669463,1.20245834,3286.7,3286.0,0.823]
[1736707669666,2.12994,3286.5,3286.0,0.823]
[1736707670575,3.33239834,3286.5,3286.0,0.823]
[1736707672569,3.33239834,3286.5,3285.3,1.80598648]
[1736707672570,2.1303,3286.0,3285.4,0.823]
[1736707672775,1.20245834,3285.9,3285.4,0.823]
[1736707673548,0.02907491,3285.8,3285.5,0.0075]
[1736707673793,0.02907491,3285.8,3285.4,0.823]
[1736707675451,2.15945491,3285.8,3285.4,0.823]
[1736707675943,1.20245834,3285.7,3285.4,0.823]
[1736707676139,1.20245834,3285.7,3285.1,0.7996]
[1736707676345,1.20245834,3285.7,3285.2,0.0075]
[1736707676544,0.02907491,3285.6,3285.2,0.0075]
[1736707677279,2.13066,3285.4,3284.9,0.7996]
[1736707677464,1.20245834,3285.3,3284.9,0.7996]
[1736707677670,0.0288259,3285.2,3284.9,0.7996]
[1736707678307,0.0288259,3285.2,3284.8,3.8e-06]
[1736707678308,1.20245834,3285.1,3284.8,3.8e-06]
[1736707678447,1.20245834,3284.9,3284.8,3.8e-06]
[1736707678648,0.02868933,3284.9,3284.8,3.8e-06]
[1736707679148,1.20245834,3284.9,3284.8,3.8e-06]
[1736707679380,2.97374933,3284.9,3284.8,3.8e-06]
[1736707688474,0.84278933,3284.9,3284.8,3.8e-06]
[1736707688676,0.02868933,3284.9,3284.8,3.8e-06]
[1736707688862,2.13071,3285.3,3284.8,0.03044449]
[1736707689188,0.02698579,3285.2,3284.8,0.03044449]
[1736707690281,2.13051,3285.6,3285.0,0.7969]
[1736707690469,0.02709832,3285.5,3285.0,0.7969]
[1736707691389,0.02709832,3285.5,3285.1,0.03043661]
[1736707691597,2.13045,3285.7,3285.1,0.03043661]
[1736707691758,0.02709832,3285.4,3285.1,0.03043661]
[1736707691959,2.13045,3285.7,3285.1,0.03043661]
[1736707692183,0.02709832,3285.3,3285.1,0.03043661]
[1736707692376,2.13045,3285.7,3285.1,0.03043661]
[1736707692578,0.02709832,3285.2,3285.0,0.7969]
[1736707692778,2.13049,3285.7,3285.0,1.17659038]
[1736707692979,0.02709832,3285.1,3285.0,1.18409038]
[1736707693599,2.13049,3285.7,3285.0,1.18409038]
[1736707693796,0.02709832,3285.1,3285.0,1.18409038]
[1736707693959,2.13049,3285.7,3285.0,1.18409038]
[1736707694163,0.02709832,3285.1,3285.0,1.18409038]
[1736707694417,2.13049,3285.7,3285.0,1.18409038]
[1736707695013,0.02709832,3285.6,3285.0,1.18409038]
[1736707696663,0.02709832,3285.6,3285.1,0.03043656]
[1736707697496,0.02709832,3285.6,3285.1,0.03043655]
[1736707699499,1.22970005,3285.6,3285.1,0.03043655]
[1736707701469,1.22970005,3285.6,3285.0,1.18409038]
[1736707702307,1.22970005,3285.6,3285.1,0.03043651]
[1736707705532,1.22970005,3285.6,3285.0,1.18409038]
[1736707705883,1.22970005,3285.6,3285.1,0.03043648]
[1736707706197,1.22970005,3285.6,3285.0,1.18409038]
[1736707706398,1.22970005,3285.6,3285.1,0.03043647]
[1736707706599,1.22970005,3285.6,3285.0,1.18409038]
[1736707706828,0.02709832,3285.6,3285.2,0.0075]
[1736707707332,0.0279984,3285.5,3285.3,0.7869]
[1736707707535,2.01490173,3285.9,3285.4,0.03043371]
[1736707708224,1.20260173,3285.9,3285.4,0.03043371]
[1736707710798,0.8295,3286.1,3285.4,0.03043371]
[1736707711003,2.03210173,3286.1,3285.4,0.03043371]
[1736707711603,1.20260173,3286.1,3285.5,0.8281]
[1736707711818,1.20260173,3286.1,3285.6,0.03043241]
[1736707712016,2.13017,3286.2,3285.6,0.03043241]
[1736707712421,2.03210173,3286.3,3285.7,0.0075]
[1736707712813,0.8295,3286.3,3285.6,0.0075]
[1736707713004,3.33266173,3286.3,3285.6,0.0075]
[1736707713914,1.20260173,3286.3,3285.7,0.7658]
[1736707714135,1.20260173,3286.4,3285.8,0.0075]
[1736707714318,2.13,3286.4,3285.8,0.0075]
[1736707714491,3.33260173,3286.4,3285.8,0.0075]
[1736707716923,1.20260173,3286.4,3285.8,0.0075]
[1736707717125,1.20260173,3286.4,3285.9,0.0075]
[1736707717400,3.33247173,3286.6,3286.0,0.7658]
[1736707717903,1.20260173,3286.6,3286.0,0.7658]
[1736707718133,2.94309,3286.7,3286.0,0.7658]
[1736707718604,0.02858488,3286.6,3286.0,0.7658]
[1736707719010,2.15845488,3286.6,3286.0,0.7658]
[1736707720031,3.36105661,3286.6,3286.0,0.7658]
[1736707720708,2.12992,3286.5,3286.0,0.7658]
[1736707720907,1.20260173,3286.4,3286.0,0.7658]
[1736707721113,2.13011,3286.3,3286.0,0.7658]
[1736707721324,2.13027,3286.0,3285.1,0.8082]
[1736707721511,0.029356,3285.9,3285.1,0.8082]
[1736707721710,0.029356,3285.9,3285.2,0.0075]
[1736707722003,2.13027,3286.0,3285.2,0.0075]
[1736707722435,2.13027,3286.0,3285.2,3.0075]
[1736707722627,1.20260173,3285.9,3285.4,0.0075]
[1736707722946,3.33293173,3285.9,3285.4,0.0075]
[1736707723126,0.02914718,3285.8,3285.2,0.0075]
[1736707723525,1.20260173,3285.9,3285.2,0.0075]
[1736707723741,0.02914718,3285.7,3285.4,0.0075]
[1736707723927,1.20260173,3285.9,3285.4,0.0075]
[1736707724107,0.02914718,3285.8,3285.4,0.0075]
[1736707725242,0.02914718,3285.8,3285.5,0.8082]
[1736707725433,0.02914718,3285.8,3285.6,0.03043215]
[1736707725740,0.02894637,3285.7,3285.5,0.8082]
[1736707726241,0.02893833,3285.6,3285.5,0.8082]
[1736707727109,3.33278173,3286.1,3285.5,0.8082]
[1736707727343,0.02893833,3286.0,3285.5,0.8082]
[1736707730628,2.15920833,3286.0,3285.5,0.8082]
[1736707730822,2.15920833,3286.0,3285.3,0.294652]
[1736707730823,1.99830173,3285.9,3285.3,0.0075]
[1736707731405,0.02753407,3285.8,3285.3,0.0075]
[1736707736190,0.02753407,3285.8,3285.4,0.38309]
[1736707736344,0.02753407,3285.8,3285.5,0.03043216]
[1736707736548,1.97100173,3286.1,3285.5,0.03043216]
[1736707736890,0.02753407,3286.0,3285.5,0.03043216]
[1736707737397,0.02753407,3286.0,3285.6,0.8012]
[1736707737590,0.02753407,3286.0,3285.7,0.03043144]
[1736707737888,0.02753407,3286.0,3285.7,0.0075]
[1736707738087,1.20260173,3286.1,3285.7,0.0075]
[1736707742383,1.20260173,3286.1,3285.5,0.0075]
[1736707743719,2.90773,3286.2,3285.5,0.0075]
[1736707743923,2.90773,3286.2,3285.4,3.38309]
[1736707743924,4.11033173,3286.2,3285.7,0.8054]
[1736707744593,1.20260173,3286.0,3285.4,1.18099]
[1736707744916,3.33290173,3286.0,3285.4,0.7979]
[1736707749609,1.20260173,3286.0,3285.5,0.0075]
[1736707749778,0.7776,3286.2,3285.5,0.0075]
[1736707749979,4.11941173,3286.4,3285.7,0.0075]
[1736707750717,2.91681,3286.4,3285.7,0.0075]
[1736707752611,4.11941173,3286.4,3285.7,0.0075]
[1736707752814,4.11941173,3286.4,3285.9,0.0075]
[1736707753690,1.20260173,3286.6,3286.0,0.8313]
[1736707753889,0.0075,3287.5,3286.1,0.03042709]
[1736707753890,2.12975,3286.8,3286.1,0.03042709]
[1736707754101,2.12979,3286.7,3286.1,0.03042709]
[1736707755818,0.8012,3286.9,3286.3,0.8313]
[1736707756010,2.12973,3286.8,3286.3,0.8313]
[1736707756550,2.12973,3286.8,3286.4,0.03042454]
[1736707757220,2.12973,3286.8,3286.3,0.8313]
[1736707758396,2.12973,3286.8,3286.4,0.03042454]
[1736707758597,2.12973,3286.8,3286.3,0.8313]
[1736707760118,2.12973,3286.8,3286.4,0.03042455]
[1736707760327,2.12973,3286.8,3286.3,0.8313]
[1736707760493,2.13002,3286.4,3285.5,0.8218]
[1736707760695,2.13008,3286.3,3285.5,0.8218]
[1736707760902,0.761,3286.5,3285.5,0.8218]
[1736707760903,3.24647631,3286.5,3285.5,0.8218]
[1736707761201,2.13016,3286.2,3285.5,0.8218]
[1736707761408,2.89131,3285.9,3284.9,0.8218]
[1736707761608,2.89131,3285.9,3285.0,0.31628038]
[1736707761803,2.89131,3285.9,3285.1,0.0075]
[1736707763330,0.02673206,3285.8,3285.3,0.0075]
[1736707764330,0.02673206,3285.8,3285.4,0.8218]
[1736707764525,0.02673206,3285.8,3285.5,0.03043215]
[1736707764746,2.13019,3286.1,3285.5,0.03043215]
[1736707764948,0.02693296,3285.7,3285.5,0.03043215]
[1736707765263,0.02693296,3285.6,3285.5,0.03043215]
[1736707765400,0.02693296,3285.6,3285.4,0.8218]
[1736707765600,2.13026,3286.0,3285.4,1.20473]
[1736707765836,0.02693296,3285.9,3285.4,0.8218]
[1736707768677,0.02693296,3285.9,3285.5,0.03043222]
[1736707769683,0.02693296,3285.9,3285.6,0.0075]
[1736707769845,0.02693296,3285.9,3285.7,0.7794]
[1736707770047,2.13007,3286.3,3285.8,0.03042985]
[1736707771874,2.13013,3286.2,3285.7,0.7794]
[1736707773073,2.13013,3286.2,3285.8,0.0304301]
[1736707773730,2.13013,3286.2,3285.8,0.03043007]
[1736707774163,2.13013,3286.2,3285.7,0.7794]
[1736707774990,2.13013,3286.2,3285.8,0.03043012]
[1736707775472,2.13013,3286.2,3285.7,0.7794]
[1736707776172,2.13013,3286.2,3285.8,0.03043011]
[1736707778431,0.02701333,3286.1,3285.8,0.03043011]
[1736707778835,0.02701333,3286.1,3285.9,0.0075]
[1736707779235,2.12987,3286.6,3286.0,0.8231]
[1736707779442,2.12987,3286.6,3286.0,0.85352836]
[1736707780049,2.12994,3286.5,3286.0,0.85352836]
[1736707791992,2.12981,3286.7,3286.0,0.85352836]
[1736707793587,0.02731058,3286.6,3286.0,0.85352836]
[1736707794116,0.02731058,3286.6,3286.3,1.20179831]
[1736707794288,0.02731058,3286.6,3286.0,0.38610284]
[1736707794289,0.02731058,3286.6,3286.5,1.97329831]
[1736707794444,2.12934,3287.4,3286.6,0.0075]
[1736707794647,0.0267463,3287.3,3286.7,0.764]
[1736707794844,0.0267463,3287.3,3286.9,0.0075]
[1736707795101,2.12909,3287.8,3286.9,3.7715]
[1736707795250,0.0268829,3287.2,3287.1,0.0075]
[1736707795450,4.15409831,3288.0,3287.2,0.764]
[1736707795746,2.9523,3288.0,3287.3,0.03041658]
[1736707795951,0.02701954,3287.9,3287.3,0.03041658]
[1736707796152,0.02701954,3287.9,3287.2,0.764]
[1736707797475,0.02701954,3287.9,3287.3,0.0075]
[1736707797676,0.02701954,3287.9,3287.3,0.03791433]
[1736707797881,0.02701954,3287.9,3287.4,0.764]
[1736707798201,2.6935387,3288.5,3287.5,0.03791366]
[1736707798202,0.8233,3288.4,3287.5,0.03791366]
[1736707798872,0.02673586,3288.3,3287.6,0.764]
[1736707800661,2.12883,3288.2,3287.6,0.764]
[1736707801074,0.02680814,3288.1,3287.6,0.764]
[1736707803769,2.12896,3288.0,3287.5,0.03041374]
[1736707803970,2.12915,3287.7,3287.3,0.764]
[1736707804162,2.95233,3287.9,3287.3,0.764]
[1736707804599,2.50570223,3288.5,3286.8,0.03791739]
[1736707804600,0.8233,3288.2,3287.5,0.7715]
[1736707804761,0.02696874,3287.8,3287.6,0.03041378]
[1736707804965,0.8233,3288.2,3287.6,0.03041378]
[1736707805385,0.02696874,3288.1,3287.6,0.03041378]
[1736707806276,0.02696874,3288.1,3287.6,0.0304138]
[1736707806809,0.02784424,3288.0,3287.6,0.0304138]
[1736707807009,2.12872,3288.4,3287.6,0.0304138]
[1736707807213,0.32311851,3288.3,3287.7,0.0075]
[1736707807380,0.02791651,3288.3,3287.7,0.0075]
[1736707807587,2.12876,3288.3,3287.7,0.0075]
[1736707807780,2.15675651,3288.2,3287.6,0.0075]
[1736707810473,2.15675651,3288.2,3287.5,0.764]
[1736707810898,2.1289,3288.1,3287.5,0.764]
[1736707811377,0.02791651,3288.0,3287.5,0.764]
[1736707812102,0.02791651,3288.0,3287.6,0.03041344]
[1736707813007,2.12878,3288.3,3287.6,0.03041344]
[1736707813174,0.02791651,3288.2,3287.6,0.03041344]
[1736707813577,0.02791651,3288.2,3287.7,0.7841]
[1736707815675,2.15674651,3288.2,3287.7,0.7841]
[1736707815918,2.12883,3288.2,3287.7,0.7841]
[1736707816089,0.02791651,3288.1,3287.7,0.7841]
[1736707821324,0.02791651,3288.1,3287.8,0.03791227]
[1736707821484,2.12858,3288.6,3287.9,0.8147]
[1736707821820,2.12858,3288.6,3288.0,0.03040969]
[1736707823602,0.02818148,3288.5,3288.0,0.03040969]
[1736707824225,0.02818148,3288.5,3288.1,0.8222]
[1736707824428,2.12845,3288.8,3288.2,0.03040763]
[1736707824622,0.02786803,3288.7,3288.3,0.8147]
[1736707824820,2.12845,3288.8,3288.3,0.8147]
[1736707824987,0.0270147,3288.7,3288.3,0.8147]
[1736707825182,2.12845,3288.8,3288.3,0.8147]
[1736707825417,0.0270147,3288.7,3288.3,0.8147]
[1736707825631,2.12845,3288.8,3288.3,0.8147]
[1736707825795,0.0270147,3288.7,3288.3,0.8147]
[1736707826130,2.12845,3288.8,3288.3,0.8147]
[1736707826289,0.0270147,3288.6,3288.3,0.8147]
[1736707826490,2.12845,3288.8,3288.3,0.8147]
[1736707827001,0.0270147,3288.7,3288.3,0.8147]
[1736707827196,2.12845,3288.8,3288.3,0.8147]
[1736707827527,0.02719943,3288.7,3288.3,0.8147]
[1736707827819,2.12845,3288.8,3288.3,0.8147]
[1736707828027,0.02721549,3288.7,3288.3,0.8147]
[1736707828226,2.12863,3288.5,3288.3,0.8147]
[1736707828426,4.6118687,3289.0,3288.0,0.8016]
[1736707828427,2.15591549,3288.4,3288.0,0.8016]
[1736707828820,0.02721549,3288.4,3288.0,0.8016]
[1736707828999,2.12863,3288.5,3288.0,0.8016]
[1736707829201,2.1287,3288.4,3288.0,0.8016]
[1736707829453,2.15581911,3288.4,3288.0,0.8016]
[1736707832263,0.02711911,3288.4,3288.1,0.0075]
[1736707832424,2.12859,3288.6,3288.1,0.03791014]
[1736707832624,0.02711911,3288.5,3288.1,0.03791014]
[1736707832823,2.12844,3288.8,3288.2,0.8016]
[1736707833043,0.02711911,3288.7,3288.2,0.8016]
[1736707833353,2.90718,3288.5,3287.7,0.8286]
[1736707833518,2.90718,3288.5,3287.9,0.0075]
[1736707833841,2.15582911,3288.4,3287.9,0.0075]
[1736707834845,2.12883,3288.2,3287.8,0.38286]
[1736707835018,2.12883,3288.2,3287.7,0.8286]
[1736707835214,2.1285,3288.7,3287.8,0.03041233]
[1736707835215,2.12872,3288.4,3287.8,0.03041233]
[1736707835418,2.12859,3288.6,3288.1,0.0075]
[1736707835613,0.7785,3288.8,3288.1,0.0075]
[1736707835614,2.12864,3288.5,3288.1,0.0075]
[1736707835818,2.15575911,3288.5,3288.1,0.0075]
[1736707837111,0.02711911,3288.5,3288.2,0.8286]
[1736707837449,2.12844,3288.8,3288.3,0.03040758]
[1736707837746,0.02711911,3288.7,3288.3,0.0075]
[1736707837924,0.02711911,3288.7,3288.3,0.0379075]
[1736707838121,2.12837,3288.9,3288.3,0.0379075]
[1736707838323,0.02727171,3288.6,3288.3,0.0075]
[1736707838505,2.12837,3288.9,3288.3,0.03790697]
[1736707838705,0.02727171,3288.5,3288.3,0.0075]
[1736707838923,2.90677,3289.1,3288.3,0.0075]
[1736707839177,0.02727171,3288.4,3288.3,0.0075]
[1736707839448,0.77274887,3289.0,3288.3,0.0075]
[1736707839643,0.7785,3288.8,3288.2,0.8286]
[1736707839844,2.12888,3288.2,3287.4,8.92]
[1736707840045,2.12888,3288.2,3287.1,2.3385]
[1736707840046,2.15621989,3288.1,3287.5,0.8286]
[1736707840218,2.15621989,3288.1,3287.6,0.0075]
[1736707841924,2.1289,3288.1,3287.6,0.0075]
[1736707842214,0.0271191,3288.0,3287.6,0.0075]
[1736707843677,2.12902,3287.9,3287.5,0.8286]
[1736707843870,0.99411391,3287.9,3287.3,0.8286]
[1736707844063,0.0271191,3287.8,3286.8,0.8286]
[1736707844437,2.12928,3287.5,3286.9,0.0075]
[1736707844671,2.15628434,3287.4,3286.9,0.0075]
[1736707846875,0.02693434,3287.4,3286.9,0.03791931]
[1736707847035,0.7785,3287.9,3287.1,0.0075]
[1736707847241,2.4835387,3288.3,3287.2,0.8436]
[1736707847242,0.02693434,3287.8,3287.2,0.8436]
[1736707847442,0.7785,3288.3,3287.5,0.0075]
[1736707847637,0.02666921,3288.2,3287.7,0.0075]
[1736707847843,0.209,3288.4,3287.7,0.0075]
[1736707848043,0.02666921,3288.3,3287.7,0.0075]
[1736707848775,2.12887,3288.2,3287.7,0.0075]
[1736707849883,2.12893,3288.1,3287.7,0.0075]
[1736707853482,0.209,3288.4,3287.6,0.8286]
[1736707853673,2.12875,3288.3,3287.6,0.8286]
[1736707854056,0.8252,3288.1,3287.2,0.8082]
[1736707854258,0.209,3288.4,3287.2,0.8082]
[1736707854259,2.12933,3287.5,3287.2,0.8082]
[1736707854469,2.12938,3287.4,3287.1,3.0]
[1736707854675,2.12938,3287.4,3287.0,0.8082]
[1736707855985,2.1294,3287.3,3287.0,0.8082]
[1736707856163,2.12955,3287.1,3286.4,0.8082]
[1736707856363,2.12955,3287.1,3286.5,0.0075]
[1736707862254,2.12943,3287.3,3286.5,0.0075]
[1736707862460,2.12943,3287.3,3286.5,0.38907]
[1736707862887,2.12943,3287.3,3286.5,0.38157]
[1736707863461,2.12943,3287.3,3286.6,0.03042319]
[1736707864996,2.12943,3287.3,3286.6,0.03042318]
[1736707866601,2.12943,3287.3,3286.5,0.38157]
[1736707866760,2.1293,3287.5,3286.7,0.8157]
[1736707866968,0.8252,3288.0,3287.0,0.0075]
[1736707867166,4.6123087,3288.3,3287.3,0.8082]
[1736707867167,2.1289,3288.1,3287.3,0.8082]
[1736707867418,2.1289,3288.1,3287.3,1.102721]
[1736707868779,2.1289,3288.1,3287.4,0.03041545]
[1736707868963,2.1289,3288.1,3287.3,0.8082]
[1736707869177,2.1289,3288.1,3287.4,0.0075]
[1736707871479,0.8252,3288.2,3287.3,0.8082]
[1736707871805,2.12915,3287.7,3287.0,0.0075]
[1736707872005,2.93301,3287.5,3286.9,0.7531]
[1736707872223,2.12936,3287.4,3286.9,0.7531]
[1736707873683,2.1291,3287.8,3286.9,0.7531]
[1736707873684,2.12923,3287.6,3286.9,0.7531]
[1736707874875,2.12928,3287.5,3286.9,0.7531]
[1736707877391,2.92606,3288.2,3287.3,0.0075]
[1736707877621,2.129,3288.0,3287.3,0.0075]
[1736707878137,2.92606,3288.2,3287.3,0.0075]
[1736707878338,2.12904,3287.9,3287.3,0.0075]
[1736707879278,2.12904,3287.9,3287.3,0.03791535]
[1736707880088,2.12904,3287.9,3287.3,0.0075]
[1736707882814,2.1289,3288.1,3287.3,0.03791537]
[1736707883021,2.1289,3288.1,3287.4,0.8205]
[1736707883224,2.1289,3288.1,3287.5,0.03041463]
[1736707884423,2.1289,3288.1,3287.4,0.8205]
[1736707885020,2.1289,3288.1,3287.5,0.03041455]
[1736707885220,2.12916,3287.7,3287.4,0.8205]
[1736707886609,2.12916,3287.7,3286.9,0.828]
[1736707889035,2.12922,3287.6,3286.9,0.828]
[1736707889534,2.12922,3287.6,3287.0,0.03041864]
[1736707889749,2.12913,3287.8,3287.0,0.03041864]
[1736707889903,2.12913,3287.8,3287.1,0.7653]